fUSD/lending_fUSD_20250112
["ID","MTS","AMOUNT","RATE_DAILY","PERIOD"]
[348674857,1736709035856,-500.0,9.813e-05,2]
[348674858,1736709035865,-500.0,9.813e-05,2]
[348674859,1736709035875,-500.0,9.813e-05,2]
[348674860,1736709035884,-1572.67,9.813e-05,2]
[348674861,1736709035893,-3268.22,9.813e-05,2]
[348674862,1736709035903,-543.47,9.813e-05,2]
[348674863,1736709035912,-500.0,9.813e-05,2]
[348674864,1736709035922,-5027.86,9.813e-05,2]
[348674865,1736709035931,-522.19,9.813e-05,2]
[348674866,1736709035940,-500.0,9.813e-05,2]
[348674867,1736709035950,-500.0,9.813e-05,2]
[348674868,1736709035959,-609.64,9.813e-05,2]
[348674869,1736709035969,-760.82,9.813e-05,2]
[348674870,1736709035978,-628.65,9.813e-05,2]
[348674871,1736709035988,-885.5,9.813e-05,2]
[348674872,1736709035998,-715.31,9.813e-05,2]
[348674873,1736709036008,-500.0,9.813e-05,2]
[348674874,1736709036021,-504.85,9.813e-05,2]
[348674875,1736709036030,-2226.69,9.813e-05,2]
[348674876,1736709036040,-500.0,9.813e-05,2]
[348674877,1736709036049,-1354.01,9.813e-05,2]
[348674878,1736709036060,-871.84,9.813e-05,2]
[348674879,1736709036071,-488.22817581,9.813e-05,2]
[348674880,1736709036080,-689.31,9.813e-05,2]
[348674881,1736709036092,-500.0,9.813e-05,2]
[348674882,1736709036102,-552.33504537,9.813e-05,2]
[348674883,1736709036113,-500.0,9.813e-05,2]
[348674884,1736709036123,-500.0,9.813e-05,2]
[348674885,1736709036134,-514.12,9.813e-05,2]
[348674886,1736709036144,-3908.88,9.813e-05,2]
[348674887,1736709036154,-500.0,9.813e-05,2]
[348674888,1736709036164,-822.26,9.813e-05,2]
[348674889,1736709036173,-500.0,9.813e-05,2]
[348674890,1736709036183,-500.0,9.813e-05,2]
[348674891,1736709036192,-796.14,9.813e-05,2]
[348674892,1736709036202,-500.0,9.813e-05,2]
[348674893,1736709036211,-500.0,9.813e-05,2]
[348674894,1736709036221,-500.0,9.813e-05,2]
[348674895,1736709036231,-695.22,9.813e-05,2]
[348674896,1736709036241,-580.12,9.813e-05,2]
[348674897,1736709036251,-687.84,9.813e-05,2]
[348674898,1736709036260,-1422.92,9.813e-05,2]
[348674899,1736709036270,-500.0,9.813e-05,2]
[348674900,1736709036279,-861.22,9.813e-05,2]
[348674901,1736709036289,-1074.42,9.813e-05,2]
[348674902,1736709036298,-685.88,9.813e-05,2]
[348674903,1736709036308,-500.0,9.813e-05,2]
[348674904,1736709036318,-500.0,9.813e-05,2]
[348674905,1736709036328,-313.9561057,9.813e-05,2]
[348674906,1736709036338,-1109.63,9.813e-05,2]
[348674907,1736709036348,-710.3,9.813e-05,2]
[348674908,1736709036358,-500.0,9.813e-05,2]
[348674909,1736709036367,-500.0,9.813e-05,2]
[348674910,1736709036377,-500.0,9.813e-05,2]
[348674911,1736709036386,-547.43,9.813e-05,2]
[348674912,1736709036396,-500.0,9.813e-05,2]
[348674913,1736709036406,-500.0,9.813e-05,2]
[348674914,1736709036417,-634.85,9.813e-05,2]
[348674915,1736709036427,-585.14,9.813e-05,2]
[348674916,1736709036436,-500.0,9.813e-05,2]
[348674917,1736709036445,-500.0,9.813e-05,2]
[348674918,1736709036455,-500.0,9.814e-05,2]
[348674919,1736709036465,-852.62,9.814e-05,2]
[348674920,1736709036475,-1533.28,9.814e-05,2]
[348674921,1736709036485,-906.98,9.814e-05,2]
[348674922,1736709036494,-662.47,9.814e-05,2]
[348674923,1736709036504,-747.947643,9.814e-05,2]
[348674924,1736709036514,-3096.8,9.814e-05,2]
[348674925,1736709036526,-793.089038,9.814e-05,2]
[348674926,1736709036536,-672.5,9.814e-05,2]
[348674927,1736709036546,-677.8,9.814e-05,2]
[348674928,1736709036556,-704.37,9.814e-05,2]
[348674929,1736709036566,-500.0,9.814e-05,2]
[348674930,1736709036576,-3308.77,9.814e-05,2]
[348674931,1736709036586,-500.0,9.814e-05,2]
[348674932,1736709036596,-500.0,9.814e-05,2]
[348674933,1736709036605,-574.64,9.814e-05,2]
[348674934,1736709036615,-500.0,9.814e-05,2]
[348674935,1736709036624,-500.0,9.814e-05,2]
[348674936,1736709036634,-500.0,9.814e-05,2]
[348674937,1736709036643,-710.37,9.814e-05,2]
[348674938,1736709036653,-500.0,9.814e-05,2]
[348674939,1736709036663,-500.0,9.814e-05,2]
[348674940,1736709036672,-941.34,9.814e-05,2]
[348674941,1736709036682,-620.73,9.814e-05,2]
[348674942,1736709036692,-500.0,9.814e-05,2]
[348674943,1736709036902,-500.0,9.814e-05,2]
[348674944,1736709036913,-500.0,9.814e-05,2]
[348674945,1736709036924,-500.0,9.814e-05,2]
[348674946,1736709036933,-501.66,9.814e-05,2]
[348674947,1736709036943,-500.0,9.814e-05,2]
[348674948,1736709036953,-500.0,9.814e-05,2]
[348674949,1736709036963,-500.0,9.814e-05,2]
[348674950,1736709036972,-500.0,9.814e-05,2]
[348674951,1736709036982,-500.0,9.814e-05,2]
[348674952,1736709036992,-500.0,9.814e-05,2]
[348674953,1736709037001,-500.0,9.814e-05,2]
[348674954,1736709037011,-500.0,9.814e-05,2]
[348674955,1736709037020,-500.0,9.814e-05,2]
[348674956,1736709037029,-500.0,9.814e-05,2]
[348674957,1736709037038,-518.52,9.814e-05,2]
[348674958,1736709037050,-562.63,9.814e-05,2]
[348674959,1736709037059,-633.36,9.814e-05,2]
[348674960,1736709037068,-856.86,9.814e-05,2]
[348674961,1736709037078,-500.0,9.814e-05,2]
[348674962,1736709037088,-500.0,9.814e-05,2]
[348674963,1736709037098,-500.0,9.814e-05,2]
[348674964,1736709037108,-500.0,9.814e-05,2]
[348674965,1736709037117,-1194.5,9.814e-05,2]
[348674966,1736709037127,-500.0,9.814e-05,2]
[348674967,1736709037136,-862.72,9.814e-05,2]
[348674968,1736709037146,-759.87,9.814e-05,2]
[348674969,1736709037156,-1565.08,9.814e-05,2]
[348674970,1736709037166,-851.14,9.814e-05,2]
[348674971,1736709037175,-895.43,9.814e-05,2]
[348674972,1736709037187,-1055.63,9.814e-05,2]
[348674973,1736709037196,-500.0,9.814e-05,2]
[348674974,1736709037205,-468.36353469,9.814e-05,2]
[348674975,1736709037215,-500.0,9.814e-05,2]
[348674976,1736709037225,-2218.53,9.814e-05,2]
[348674977,1736709037235,-500.0,9.814e-05,2]
[348674978,1736709037244,-500.0,9.814e-05,2]
[348674979,1736709037253,-500.0,9.814e-05,2]
[348674980,1736709037263,-1225.12039909,9.814e-05,2]
[348674984,1736709037577,-21.44960091,9.814e-05,2]
[348674985,1736709037587,-500.0,9.814e-05,2]
[348674986,1736709037596,-93.29439883,9.814e-05,2]
[348674987,1736709037623,-500.0,9.813e-05,2]
[348674988,1736709037632,-406.70560117,9.814e-05,2]
[348674989,1736709037642,-587.96,9.814e-05,2]
[348674990,1736709037651,-3022.45,9.814e-05,2]
[348674991,1736709037659,-500.0,9.814e-05,2]
[348674992,1736709037668,-3560.6,9.814e-05,2]
[348674993,1736709037677,-508.5,9.814e-05,2]
[348674994,1736709037686,-609.66,9.814e-05,2]
[348674995,1736709037696,-666.21,9.814e-05,2]
[348674996,1736709037705,-500.0,9.814e-05,2]
[348674997,1736709037715,-549.39,9.814e-05,2]
[348674998,1736709037724,-500.0,9.814e-05,2]
[348674999,1736709037733,-500.0,9.814e-05,2]
[348675000,1736709037742,-1451.52,9.814e-05,2]
[348675001,1736709037752,-500.0,9.814e-05,2]
[348675002,1736709037761,-500.0,9.814e-05,2]
[348675003,1736709037770,-500.0,9.814e-05,2]
[348675004,1736709037780,-500.0,9.814e-05,2]
[348675005,1736709037789,-775.84,9.814e-05,2]
[348675006,1736709037798,-533.68,9.814e-05,2]
[348675007,1736709037807,-2572.06,9.814e-05,2]
[348675008,1736709037816,-736.09,9.814e-05,2]
[348675009,1736709037825,-817.24,9.814e-05,2]
[348675010,1736709037835,-500.0,9.814e-05,2]
[348675011,1736709037844,-550.14,9.814e-05,2]
[348675012,1736709037854,-500.0,9.815e-05,2]
[348675013,1736709037863,-500.0,9.815e-05,2]
[348675014,1736709037874,-500.0,9.815e-05,2]
[348675015,1736709037883,-500.0,9.815e-05,2]
[348675016,1736709037892,-500.0,9.815e-05,2]
[348675017,1736709037901,-500.0,9.815e-05,2]
[348675018,1736709037910,-500.0,9.815e-05,2]
[348675019,1736709037919,-303.36191034,9.815e-05,2]
[348675020,1736709037928,-500.0,9.815e-05,2]
[348675021,1736709037937,-500.0,9.815e-05,2]
[348675022,1736709037947,-612.64,9.815e-05,2]
[348675023,1736709037956,-500.0,9.815e-05,2]
[348675024,1736709037965,-500.0,9.815e-05,2]
[348675025,1736709037974,-500.0,9.815e-05,2]
[348675027,1736709037983,-500.0,9.815e-05,2]
[348675029,1736709037992,-500.0,9.815e-05,2]
[348675031,1736709038001,-500.0,9.815e-05,2]
[348675033,1736709038010,-500.0,9.815e-05,2]
[348675035,1736709038019,-500.0,9.815e-05,2]
[348675037,1736709038028,-500.0,9.815e-05,2]
[348675039,1736709038037,-500.0,9.815e-05,2]
[348675041,1736709038047,-500.0,9.815e-05,2]
[348675043,1736709038056,-1030.25,9.815e-05,2]
[348675045,1736709038065,-874.49,9.815e-05,2]
[348675047,1736709038076,-772.58,9.815e-05,2]
[348675049,1736709038085,-500.0,9.815e-05,2]
[348675051,1736709038096,-897.15,9.815e-05,2]
[348675053,1736709038106,-749.52,9.815e-05,2]
[348675055,1736709038115,-921.27,9.815e-05,2]
[348675057,1736709038125,-890.95,9.816e-05,2]
[348675060,1736709038134,-867.41,9.816e-05,2]
[348675064,1736709038143,-838.4,9.816e-05,2]
[348675068,1736709038152,-1928.82,9.816e-05,2]
[348675070,1736709038161,-1308.66,9.816e-05,2]
[348675071,1736709038170,-1246.38,9.816e-05,2]
[348675072,1736709038179,-500.0,9.816e-05,2]
[348675073,1736709038188,-1462.07,9.816e-05,2]
[348675074,1736709038197,-820.09,9.816e-05,2]
[348675075,1736709038206,-1615.37,9.816e-05,2]
[348675076,1736709038215,-1253.02,9.816e-05,2]
[348675077,1736709038224,-1163.34,9.816e-05,2]
[348675078,1736709038233,-2339.18,9.816e-05,2]
[348675079,1736709038243,-1216.68,9.816e-05,2]
[348675081,1736709038253,-1496.42,9.816e-05,2]
[348675083,1736709038262,-4996.32,9.816e-05,2]
[348675085,1736709038271,-825.35,9.816e-05,2]
[348675087,1736709038280,-3577.75,9.816e-05,2]
[348675089,1736709038289,-874.6,9.816e-05,2]
[348675091,1736709038299,-1000.0,9.816e-05,2]
[348675093,1736709038308,-1284.97,9.816e-05,2]
[348675095,1736709038318,-1163.84,9.816e-05,2]
[348675097,1736709038327,-618.35,9.816e-05,2]
[348675099,1736709038337,-500.0,9.816e-05,2]
[348675101,1736709038346,-2440.81,9.816e-05,2]
[348675103,1736709038356,-2322.81,9.816e-05,2]
[348675105,1736709038365,-1200.97,9.816e-05,2]
[348675107,1736709038374,-765.36,9.816e-05,2]
[348675109,1736709038383,-1746.58,9.817e-05,2]
[348675111,1736709038392,-1758.72916375,9.822e-05,2]
[348675113,1736709038402,-150.0,9.836e-05,2]
[348675115,1736709038411,-398.37,9.838e-05,2]
[348675117,1736709038420,-1000.0,9.9e-05,2]
[348675119,1736709038429,-220.41878605,9.9e-05,2]
[348675121,1736709038438,-220.41878605,9.9e-05,2]
[348675123,1736709038447,-300.0,9.9e-05,3]
[348675125,1736709038456,-220.41878605,9.907e-05,2]
[348675127,1736709038465,-632.7169024,9.917e-05,2]
[348675129,1736709038474,-220.41878605,9.923e-05,2]
[348675130,1736709038484,-220.41878605,9.938e-05,2]
[348675132,1736709038493,-317.28897082,9.944e-05,2]
[348675134,1736709038502,-205.37898951,9.944e-05,2]
[348675137,1736709038512,-1553.98942713,9.944e-05,2]
[348675139,1736709038521,-220.41878605,9.954e-05,2]
[348675141,1736709038536,-220.41878605,9.969e-05,2]
[348675143,1736709038545,-44097.0,9.973e-05,2]
[348675145,1736709038554,-261.4084419,9.973e-05,2]
[348675146,1736709038564,-500.6829676,9.973e-05,2]
[348675149,1736709038573,-500.0,9.973e-05,2]
[348675150,1736709038583,-154.10789521,9.973e-05,2]
[348675153,1736709038592,-220.41878605,9.985e-05,2]
[348675154,1736709038602,-317.28897082,9.987e-05,2]
[348675156,1736709038610,-205.37898951,9.987e-05,2]
[348675158,1736709038620,-1553.98942713,9.988e-05,2]
[348675160,1736709038629,-632.7169024,9.997e-05,2]
[348675162,1736709038639,-1061.29224118,9.999e-05,3]
[348675164,1736709038648,-1061.29224118,9.999e-05,3]
[348675166,1736709038657,-1061.29224117,9.999e-05,3]
[348675168,1736709038666,-500.0,9.999e-05,2]
[348675170,1736709038675,-500.0,9.999e-05,2]
[348675172,1736709038685,-500.0,9.999e-05,2]
[348675174,1736709038694,-259.90449112,9.999e-05,2]
[348675176,1736709038704,-500.0,9.999e-05,2]
[348675178,1736709038713,-500.0,9.999e-05,2]
[348675180,1736709038722,-500.0,9.999e-05,2]
[348675182,1736709038731,-500.0,9.999e-05,2]
[348675184,1736709038740,-500.0,9.999e-05,2]
[348675186,1736709038750,-500.0,9.999e-05,2]
[348675189,1736709038759,-500.0,9.999e-05,2]
[348675191,1736709038769,-500.0,9.999e-05,2]
[348675193,1736709038778,-500.0,9.999e-05,2]
[348675194,1736709038787,-256.47298319,9.999e-05,2]
[348675196,1736709038797,-504.79558784,9.999e-05,2]
[348675199,1736709038806,-395.88319079,9.999e-05,2]
[348675200,1736709038816,-619.93917414,9.999e-05,2]
[348675202,1736709038826,-87149.00301511,0.0001,2]
[348675205,1736709038839,-1000.09,0.0001,2]
[348675209,1736709038865,-4380.46723962,0.0001,2]
[348675211,1736709038876,-1625.64,0.0001,2]
[348675213,1736709038887,-5300.0,0.0001,2]
[348675227,1736709040082,-1003.25,9.54e-05,2]
[348675228,1736709040094,-500.0,9.812e-05,2]
[348675229,1736709040103,-1003.25,9.814e-05,2]
[348675230,1736709040112,-2583.0,0.0001,2]
[348675231,1736709040124,-359.46753516,0.0001,2]
[348675232,1736709040135,-3321.10134179,0.0001,2]
[348675233,1736709040146,-4926.63449439,0.0001,2]
[348675234,1736709040182,-9653.8,0.0001,2]
[348675235,1736709040194,-1001.2,0.0001,2]
[348675236,1736709040204,-80509.25207816,0.0001,2]
[348675238,1736709040216,-16880.33485117,0.0001,2]
[348675241,1736709040233,-896.86068391,0.0001,2]
[348675243,1736709040244,-2015083.10066595,0.0001,2]
[348675245,1736709040253,-1719.39385161,0.0001,2]
[348675247,1736709040262,-15264535.8234466,0.0001,2]
[348675249,1736709040271,-820112.7319042,0.0001,2]
[348675251,1736709040282,-8036.29283313,0.0001,2]
[348675253,1736709040291,-101322.28084727,0.0001,2]
[348675255,1736709040301,-151.0,0.0001,2]
[348675257,1736709040311,-151.0,0.0001,2]
[348675259,1736709040320,-151.0,0.0001,2]
[348675261,1736709040329,-270.15882904,0.0001,2]
[348675263,1736709040339,-2000.0,0.0001,2]
[348675265,1736709040348,-200.0,0.0001,2]
[348675267,1736709040357,-500.0,0.0001,2]
[348675269,1736709040366,-233.78,0.0001,2]
[348675271,1736709040376,-24216.0,0.0001,2]
[348675273,1736709040386,-2000.0,0.0001,2]
[348675275,1736709040395,-200.0,0.0001,2]
[348675277,1736709040404,-4863.00688909,0.0001,2]
[348675279,1736709040413,-317.28897084,0.0001,2]
[348675281,1736709040423,-3000.0,0.0001,2]
[348675283,1736709040432,-220.41878605,0.0001,2]
[348675284,1736709040442,-300.0,0.0001,3]
[348675286,1736709040451,-205.37898952,0.0001,2]
[348675289,1736709040460,-1553.98942714,0.0001,2]
[348675290,1736709040470,-9655.64652452,0.0001,2]
[348675292,1736709040479,-632.71690267,0.0001,2]
[348675294,1736709040489,-632.7169024,0.0001,2]
[348675296,1736709040498,-632.7169024,0.0001,2]
[348675299,1736709040508,-632.7169024,0.0001,2]
[348675300,1736709040517,-643.93,0.00010027,2]
[348675303,1736709040529,-500.0,0.00010027,2]
[348675304,1736709040538,-500.0,0.00010027,2]
[348675306,1736709040548,-1265.46,0.00010027,2]
[348675309,1736709040557,-494.5936943,0.00010027,2]
[348675311,1736709040567,-840.79,0.00010027,2]
[348675312,1736709040576,-1961.09,0.00010027,2]
[348675315,1736709040586,-632.7169024,0.00010076,2]
[348675317,1736709040595,-1933.35,0.00010086,2]
[348675319,1736709040604,-1972.74,0.00010086,2]
[348675321,1736709040615,-1224.98,0.00010086,2]
[348675323,1736709040624,-806.89,0.00010086,2]
[348675325,1736709040633,-2040.61,0.00010086,2]
[348675327,1736709040642,-775.0,0.00010086,2]
[348675329,1736709040652,-510.73,0.00010086,2]
[348675330,1736709040661,-857.68,0.00010086,2]
[348675332,1736709040671,-1258.44,0.00010086,2]
[348675333,1736709040679,-500.0,0.00010086,2]
[348675334,1736709040688,-1105.36,0.00010086,2]
[348675335,1736709040697,-632.21,0.00010086,2]
[348675336,1736709040706,-1681.65,0.00010086,2]
[348675337,1736709040716,-500.0,0.00010086,2]
[348675338,1736709040725,-500.0,0.00010086,2]
[348675339,1736709040734,-500.0,0.00010086,2]
[348675340,1736709040743,-500.0,0.00010086,2]
[348675341,1736709040752,-500.0,0.00010086,2]
[348675342,1736709040761,-919.96,0.00010086,2]
[348675343,1736709040770,-500.0,0.00010086,2]
[348675344,1736709040779,-580.33350949,0.00010087,2]
[348675345,1736709040788,-500.0,0.00010087,2]
[348675346,1736709040798,-163.06649931,0.00010087,2]
[348675347,1736709040807,-500.0,0.00010087,2]
[348675348,1736709040816,-500.0,0.00010087,2]
[348675349,1736709040824,-500.0,0.00010087,2]
[348675350,1736709040834,-500.0,0.00010087,2]
[348675351,1736709040843,-206.17307116,0.00010087,2]
[348675352,1736709040852,-500.0,0.00010087,2]
[348675353,1736709040861,-500.0,0.00010087,2]
[348675354,1736709040871,-500.0,0.00010087,2]
[348675355,1736709040880,-631.97,0.00010087,2]
[348675356,1736709040889,-500.0,0.00010087,2]
[348675357,1736709040898,-500.0,0.00010087,2]
[348675358,1736709040907,-500.0,0.00010087,2]
[348675359,1736709040916,-500.0,0.00010087,2]
[348675360,1736709040925,-500.0,0.00010087,2]
[348675361,1736709040934,-500.0,0.00010087,2]
[348675362,1736709040943,-500.0,0.00010087,2]
[348675363,1736709040959,-500.0,0.00010087,2]
[348675364,1736709040968,-500.0,0.00010087,2]
[348675365,1736709040977,-551.2,0.00010087,2]
[348675366,1736709040986,-500.0,0.00010087,2]
[348675367,1736709040995,-500.0,0.00010087,2]
[348675368,1736709041004,-500.0,0.00010087,2]
[348675369,1736709041013,-500.0,0.00010087,2]
[348675370,1736709041023,-535.39,0.00010087,2]
[348675371,1736709041032,-500.0,0.00010087,2]
[348675372,1736709041042,-500.0,0.00010087,2]
[348675373,1736709041051,-520.67,0.00010087,2]
[348675374,1736709041061,-610.37196563,0.00010087,2]
[348675375,1736709041071,-500.0,0.00010087,2]
[348675376,1736709041081,-500.0,0.00010087,2]
[348675377,1736709041090,-638.5,0.00010087,2]
[348675378,1736709041101,-500.0,0.00010087,2]
[348675379,1736709041111,-500.0,0.00010087,2]
[348675380,1736709041120,-500.0,0.00010087,2]
[348675381,1736709041129,-500.0,0.00010087,2]
[348675382,1736709041140,-500.0,0.00010087,2]
[348675383,1736709041149,-628.83,0.00010087,2]
[348675384,1736709041158,-806.86,0.00010087,2]
[348675385,1736709041168,-500.0,0.00010087,2]
[348675386,1736709041178,-500.0,0.00010087,2]
[348675387,1736709041187,-500.0,0.00010087,2]
[348675388,1736709041196,-500.0,0.00010087,2]
[348675389,1736709041206,-500.0,0.00010087,2]
[348675390,1736709041215,-592.59,0.00010087,2]
[348675391,1736709041225,-500.0,0.00010087,2]
[348675392,1736709041234,-500.0,0.00010087,2]
[348675393,1736709041243,-500.0,0.00010087,2]
[348675394,1736709041252,-500.0,0.00010087,2]
[348675395,1736709041262,-500.0,0.00010087,2]
[348675396,1736709041272,-500.0,0.00010087,2]
[348675397,1736709041281,-500.0,0.00010087,2]
[348675398,1736709041291,-500.0,0.00010087,2]
[348675399,1736709041300,-503.60305246,0.00010087,2]
[348675400,1736709041310,-500.0,0.00010087,2]
[348675401,1736709041320,-500.0,0.00010087,2]
[348675402,1736709041330,-681.67,0.00010087,2]
[348675403,1736709041341,-500.0,0.00010087,2]
[348675404,1736709041351,-693.36,0.00010087,2]
[348675405,1736709041361,-500.0,0.00010087,2]
[348675406,1736709041371,-753.63,0.00010087,2]
[348675407,1736709041381,-534.92,0.00010087,2]
[348675408,1736709041391,-505.97139791,0.00010087,2]
[348675409,1736709041400,-622.5,0.00010087,2]
[348675410,1736709041410,-624.94,0.00010087,2]
[348675411,1736709041420,-500.0,0.00010087,2]
[348675412,1736709041430,-500.0,0.00010087,2]
[348675413,1736709041440,-500.0,0.00010087,2]
[348675414,1736709041450,-812.9,0.00010087,2]
[348675415,1736709041460,-500.0,0.00010087,2]
[348675416,1736709041469,-609.2,0.00010087,2]
[348675417,1736709041479,-500.0,0.00010087,2]
[348675418,1736709041490,-500.0,0.00010087,2]
[348675419,1736709041499,-575.09,0.00010087,2]
[348675420,1736709041509,-500.0,0.00010087,2]
[348675421,1736709041519,-500.0,0.00010087,2]
[348675422,1736709041531,-249.3227563,0.00010087,2]
[348675423,1736709041543,-535.31,0.00010087,2]
[348675424,1736709041552,-500.0,0.00010087,2]
[348675425,1736709041562,-520.51,0.00010087,2]
[348675426,1736709041571,-500.0,0.00010087,2]
[348675427,1736709041583,-500.0,0.00010087,2]
[348675428,1736709041592,-500.0,0.00010087,2]
[348675429,1736709041603,-543.47,0.00010087,2]
[348675430,1736709041613,-500.0,0.00010087,2]
[348675431,1736709041623,-5027.86,0.00010087,2]
[348675432,1736709041632,-522.19,0.00010087,2]
[348675433,1736709041642,-500.0,0.00010087,2]
[348675434,1736709041652,-500.0,0.00010087,2]
[348675435,1736709041661,-609.64,0.00010087,2]
[348675436,1736709041670,-760.82,0.00010087,2]
[348675437,1736709041679,-628.65,0.00010087,2]
[348675438,1736709041689,-885.5,0.00010087,2]
[348675439,1736709041699,-715.31,0.00010087,2]
[348675440,1736709041708,-500.0,0.00010087,2]
[348675441,1736709041718,-504.85,0.00010087,2]
[348675442,1736709041728,-2226.69,0.00010087,2]
[348675443,1736709041737,-500.0,0.00010087,2]
[348675444,1736709041747,-1354.01,0.00010087,2]
[348675445,1736709041756,-871.84,0.00010087,2]
[348675446,1736709041766,-689.31,0.00010087,2]
[348675447,1736709041775,-500.0,0.00010087,2]
[348675448,1736709041784,-500.0,0.00010087,2]
[348675449,1736709041794,-500.0,0.00010087,2]
[348675450,1736709041804,-514.12,0.00010087,2]
[348675451,1736709041814,-3908.88,0.00010087,2]
[348675452,1736709041824,-500.0,0.00010087,2]
[348675453,1736709041834,-822.26,0.00010087,2]
[348675454,1736709041843,-500.0,0.00010087,2]
[348675455,1736709041853,-500.0,0.00010087,2]
[348675456,1736709041863,-796.14,0.00010087,2]
[348675457,1736709041873,-500.0,0.00010087,2]
[348675458,1736709041882,-500.0,0.00010087,2]
[348675459,1736709041891,-500.0,0.00010087,2]
[348675460,1736709041901,-695.22,0.00010087,2]
[348675461,1736709041911,-580.12,0.00010087,2]
[348675462,1736709041920,-687.84,0.00010087,2]
[348675463,1736709041931,-1422.92,0.00010087,2]
[348675464,1736709041942,-500.0,0.00010087,2]
[348675465,1736709041951,-861.22,0.00010087,2]
[348675466,1736709041963,-1074.42,0.00010087,2]
[348675467,1736709041972,-685.88,0.00010087,2]
[348675468,1736709041982,-500.0,0.00010087,2]
[348675469,1736709041991,-500.0,0.00010087,2]
[348675470,1736709042001,-1109.63,0.00010087,2]
[348675471,1736709042011,-710.3,0.00010087,2]
[348675472,1736709042021,-500.0,0.00010087,2]
[348675473,1736709042030,-547.43,0.00010087,2]
[348675474,1736709042039,-500.0,0.00010087,2]
[348675475,1736709042049,-500.0,0.00010087,2]
[348675476,1736709042059,-634.85,0.00010087,2]
[348675477,1736709042068,-585.14,0.00010087,2]
[348675478,1736709042078,-397.55420369,0.00010087,2]
[348675479,1736709042088,-226.10672556,0.00010087,2]
[348675480,1736709042098,-500.0,0.00010087,2]
[348675481,1736709042108,-852.62,0.00010088,2]
[348675482,1736709042118,-1533.28,0.00010088,2]
[348675483,1736709042127,-906.98,0.00010088,2]
[348675484,1736709042137,-662.47,0.00010088,2]
[348675485,1736709042146,-747.947643,0.00010088,2]
[348675486,1736709042155,-3096.8,0.00010088,2]
[348675487,1736709042165,-793.089038,0.00010088,2]
[348675488,1736709042175,-672.5,0.00010088,2]
[348675489,1736709042184,-677.8,0.00010088,2]
[348675490,1736709042194,-704.37,0.00010088,2]
[348675491,1736709042203,-500.0,0.00010088,2]
[348675492,1736709042213,-3308.77,0.00010088,2]
[348675493,1736709042223,-500.0,0.00010088,2]
[348675494,1736709042232,-574.64,0.00010088,2]
[348675495,1736709042242,-500.0,0.00010088,2]
[348675496,1736709042252,-500.0,0.00010088,2]
[348675497,1736709042262,-500.0,0.00010088,2]
[348675498,1736709042271,-710.37,0.00010088,2]
[348675499,1736709042281,-500.0,0.00010088,2]
[348675500,1736709042290,-500.0,0.00010088,2]
[348675501,1736709042299,-941.34,0.00010088,2]
[348675502,1736709042309,-620.73,0.00010088,2]
[348675503,1736709042319,-500.0,0.00010088,2]
[348675504,1736709042330,-500.0,0.00010088,2]
[348675505,1736709042339,-500.0,0.00010088,2]
[348675506,1736709042349,-500.0,0.00010088,2]
[348675507,1736709042358,-501.66,0.00010088,2]
[348675508,1736709042367,-500.0,0.00010088,2]
[348675509,1736709042377,-500.0,0.00010088,2]
[348675510,1736709042386,-500.0,0.00010088,2]
[348675511,1736709042395,-500.0,0.00010088,2]
[348675512,1736709042405,-500.0,0.00010088,2]
[348675513,1736709042414,-500.0,0.00010088,2]